Cogmind - Beta 10.1 @@@ ROGUE MODE // 2021.04.10 @ 02:46:53 Player: Farfid Result: Destroyed by S-43 Plague with Heavy Machine Gun Performance ------------- Evolutions (9) 4500 Regions Visited (22) 4400 Robots Destroyed (327) 1635 Value Destroyed (19031) 19031 Prototype IDs (18) 360 Alien Tech Used (0) 0 Bonus (6692) 6692 TOTAL SCORE: 36618 Bonus ------- High Alert Combat Kills 1086 Follower Combat Kills 1626 Entered Garrisons 1400 Used RIF Installer 3500 Friendly Fire -920 Cogmind --------- Core Integrity 0/1600 Matter 267/300 Energy 86/100 System Corruption 27% Temperature Cool (0) Movement Core (50) Location -1/Access Parts ------- > --- POWER (3) -------- (None) > --- PROPULSION (6) --- (None) > --- UTILITY (11) ----- Advanced Heat Sink Advanced Target Analyzer Advanced Target Analyzer Relay Coupler [Sentry] (2) > --- WEAPON (5) ------- (None) > --- INVENTORY (4) ---- Experimental Matter Compressor (500) Peak State ------------ > --- POWER ------------ Reinforced Antimatter Reactor Reinforced Antimatter Reactor Light Quantum Reactor > --- PROPULSION ------- Biometal Heavy Treads Compact Wheel Compact Wheel Armored Wheel Armored Wheel > --- UTILITY ---------- Advanced Heat Sink Advanced Heat Sink Large Storage Unit High-capacity Storage Unit Advanced Core Analyzer Relay Coupler [NC] Relay Coupler [Swarmer] Relay Coupler [Grunt] Relay Coupler [Sentry] Relay Coupler [Hunter] Relay Coupler [Behemoth] > --- WEAPON ----------- Gamma Rifle Phase Gun Quantum Rifle KE Penetrator Railgun > --- INVENTORY -------- Improved Quantum Reactor Experimental Power Amplifier Advanced Coolant Injector Large Storage Unit Experimental Matter Compressor Improved Focal Shield Experimental Shock Absorption System Drone Bay Heavy Tesla Rifle Gamma Rifle Phase Gun Enhanced Quantum Rifle Micro-nuke Launcher Advanced Remote Datajack Advanced Remote Datajack Experimental Stasis Projector Segregator Lance [Rating: 139] Favorites ----------- Power Light Antimatter Reactor Engine Improved Deuterium Engine Power Core Light Nuclear Core Reactor Light Antimatter Reactor Propulsion Compact Wheel Treads Improved Medium Treads Leg Flexi-carbon Leg Wheel Compact Wheel Hover Unit Improved Antigrav System Flight Unit VTOL Module Utility Large Storage Unit Device Advanced Heat Sink Storage Large Storage Unit Processor Improved Core Analyzer Hackware Relay Coupler [NC] Protection Improved Light Armor Plating Weapon Heavy Machine Gun Energy Gun Plasma Rifle Energy Cannon Advanced Beam Cannon Ballistic Gun Heavy Machine Gun Ballistic Cannon Hypervelocity Gauss Cannon Launcher Long-range Missile Launcher Special Weapon Remote Datajack Slashing Weapon Segregator Piercing Weapon Lance Build | -11 -10 -9 -8 -8 -7 -7 -7 -6 -6 -6 -5 -5 -5 -4 -4 -3 -3 -3 -3 -2 -2 -1 ------- Run | Scr Mat Mat Mat Sto Fac Gar Fac Fac Gar Fac Fac Gar Fac Fac Gar Res Gar Tes Gar Res Gar Acc Slots Evolved 18 | . . 2 2 . 2 . . 2 . . 2 . . 2 . 2 . . . 2 . 2 Power 2 | . . . 1 . . . . . . . . . . . . 1 . . . . . . Propulsion 4 | . . . 1 . 1 . . . . . 1 . . . . . . . . 1 . . Utility 9 | . . 2 . . . . . 2 . . 1 . . 1 . 1 . . . 1 . 1 Weapon 3 | . . . . . 1 . . . . . . . . 1 . . . . . . . 1 Parts Attached 759 | 6 1 12 29 20 2 27 15 15 44 64 6 28 38 2 49 57 78 16 45 15 86 104 Power 103 | 1 . 1 8 2 . 8 1 2 4 8 . 1 4 . 8 8 12 1 5 2 14 13 Engine 24 | 1 . 1 6 2 . 2 1 . 3 6 . 1 . . . 1 . . . . . . Core 23 | . . . 2 . . 6 . 2 1 . . . 4 . 2 2 2 . . . . 2 Reactor 56 | . . . . . . . . . . 2 . . . . 6 5 10 1 5 2 14 11 Propulsion 145 | 2 . 1 6 7 . 5 2 3 10 10 1 7 13 . 7 9 14 1 12 2 16 17 Treads 32 | . . . 1 2 . 2 1 . 3 2 . . 3 . 2 4 5 1 1 2 1 2 Leg 21 | . . . . . . . . . 4 1 . 5 . . 3 1 2 . 3 . 2 . Wheel 82 | 2 . 1 5 3 . 3 1 2 3 7 1 2 9 . 2 4 7 . 7 . 13 10 Hover 7 | . . . . 1 . . . . . . . . . . . . . . 1 . . 5 Flight 3 | . . . . 1 . . . 1 . . . . 1 . . . . . . . . . Utility 173 | 1 1 4 5 5 2 5 5 3 9 6 2 7 8 1 17 11 22 5 10 6 17 21 Device 71 | . 1 1 2 3 1 2 1 2 3 1 . 1 2 . 6 6 12 3 3 2 7 12 Storage 19 | 1 . 2 . 1 . 1 . . 1 . . . 1 . 1 1 3 1 . 1 1 4 Processor 11 | . . 1 . . . . . . 1 . 1 1 1 1 2 . . . . . . 3 Hackware 39 | . . . . . . . 2 . 1 1 . 4 1 . 4 3 6 1 5 2 9 . Protection 33 | . . . 3 1 1 2 2 1 3 4 1 1 3 . 4 1 1 . 2 1 . 2 Artifact . | . . . . . . . . . . . . . . . . . . . . . . . Weapon 338 | 2 . 6 10 6 . 9 7 7 21 40 3 13 13 1 17 29 30 9 18 5 39 53 Energy Gun 95 | . . 1 3 . . 2 . 1 4 17 . 6 5 1 5 7 6 2 1 . 15 19 Energy Cannon 20 | . . 1 2 . . 1 1 . 10 2 . . . . . . 1 . . . . 2 Ballistic Gun 128 | 2 . 4 5 5 . 6 4 3 4 6 2 5 5 . 11 12 10 4 7 3 14 16 Ballistic Cannon 9 | . . . . . . . . . . 1 . . . . . . 5 1 1 . . 1 Launcher 6 | . . . . 1 . . . . . . . . . . . . 1 . 1 . 1 2 Special Weapon 60 | . . . . . . . 2 2 3 10 . 2 3 . 1 8 5 2 5 1 6 10 Impact Weapon . | . . . . . . . . . . . . . . . . . . . . . . . Slashing Weapon 6 | . . . . . . . . . . . 1 . . . . . . . . . 3 2 Piercing Weapon 14 | . . . . . . . . 1 . 4 . . . . . 2 2 . 3 1 . 1 Special Melee Weapon . | . . . . . . . . . . . . . . . . . . . . . . . Unidentified Prototypes 18 | . . 2 2 2 . . . 1 . 1 . . . . . 2 . 3 . 1 . 4 Parts Lost 245 | . . 3 8 3 . 10 2 2 17 6 . 9 13 . 20 9 22 11 16 . 24 70 Power 40 | . . . 3 . . 3 . . 1 . . . 1 . 4 1 4 3 2 . 9 9 Propulsion 73 | . . 1 2 2 . 3 1 1 6 1 . 5 7 . 4 4 6 1 5 . 4 20 Utility 35 | . . . 2 . . . . 1 4 . . . 1 . 3 . 5 2 3 . 3 11 Weapon 97 | . . 2 1 1 . 4 1 . 6 5 . 4 4 . 9 4 7 5 6 . 8 30 Highest Loss Streak 17 | . . 2 2 2 . 5 1 2 7 4 . 2 11 . 12 5 8 10 11 . 10 17 Average Slot Usage (%) 91 | . 97 98 97 99 84 96 97 86 86 98 95 95 91 94 95 94 89 92 78 93 89 80 Engine 4 | . 14 11 15 18 15 5 1 5 4 10 11 11 4 . . . . . . . . . Core 2 | . . . 1 . . 8 13 6 7 . . . 5 10 4 4 . 3 . . . . Reactor 5 | . . . . . . . . . . 1 . . . . 4 7 12 8 6 13 11 9 Treads 5 | . . . 4 8 7 6 9 6 5 6 5 2 3 5 5 3 7 2 1 7 6 2 Leg 2 | . . . . . . . . . 2 3 . 9 5 . 6 2 1 . 1 . . . Wheel 13 | . 28 22 22 17 15 21 18 14 10 15 20 13 14 21 12 13 6 16 11 11 9 9 Device 10 | . 11 20 9 9 9 7 5 6 14 17 11 11 8 10 10 6 12 12 7 8 8 7 Storage 11 | . 14 21 18 18 15 15 15 13 13 13 11 11 11 10 10 9 9 9 9 8 8 7 Processor 1 | . . 1 . . . . . . 1 . 4 . . 1 8 9 1 . . . . 2 Hackware 10 | . . . . . . . 6 10 3 3 . 5 11 10 4 14 14 18 19 21 24 22 Protection 3 | . . . 7 8 4 6 2 1 3 3 10 8 4 5 4 1 2 . 2 3 . 1 Energy Gun 3 | . . . . . . 2 . 1 2 10 9 5 3 4 3 6 3 3 . 4 3 6 Energy Cannon 1 | . . . 5 5 . 2 . . 6 1 . . . . . . . . . . . . Ballistic Gun 11 | . 28 21 11 12 15 17 21 11 6 5 5 6 9 15 15 10 8 13 11 8 11 8 Special Weapon 1 | . . . . . . . 1 5 . . . 3 3 . . . 1 . 1 3 . . Naked Turns . | . . . . . . . . . . . . . . . . . . . . . . . Heaviest Build 152 | 9 10 45 57 75 72 77 76 79 95 93 97 98 89 88 105 131 140 103 110 108 127 152 Greatest Support 168 | 32 32 32 36 32 32 58 42 42 65 42 52 52 68 52 75 48 168 70 70 48 48 85 Greatest Overweight (x) 24 | . . 1 2 5 2 2 2 2 5 5 2 5 23 1 6 7 9 3 7 4 10 24 Average Overweight (x) 2 | . . . 1 1 2 1 1 1 3 2 1 2 2 1 2 2 1 1 2 2 4 2 Largest Inventory Capacity 24 | 6 6 16 16 18 18 18 18 18 18 18 18 18 24 18 18 18 24 18 18 18 18 18 Average Capacity 17 | 5 6 15 16 16 18 18 18 18 18 18 18 18 18 18 18 18 18 18 18 18 17 16 Most Carried 20 | 3 5 16 16 18 17 18 18 18 18 18 18 18 18 18 18 18 20 18 18 18 18 18 Average Carried 16 | 1 3 11 15 16 17 17 17 17 17 17 17 17 17 17 17 17 17 17 14 17 16 14 Final Capacity 18 | 6 6 16 16 18 18 18 18 18 18 18 18 18 18 18 18 18 18 18 18 18 16 4 Final Carried 18 | 2 5 15 16 17 17 17 18 18 17 18 18 18 18 18 18 18 18 18 18 18 16 1 Class Distribution -------------------- 31% | Scavenger-Mutant 20% | Scavenger-Tank 15% | Scavenger-Gunner 10% | Botlord-Gunner 7% | Botlord-Mutant 5% | Mutant 3% | Bothacker-Gunner Dominant Class ---------------- Mutant | -10/Materials Mutant | -9/Materials Scavenger-Mutant | -8/Materials Scavenger-Mutant | -8/Storage Scavenger-Mutant | -7/Factory Scavenger-Tank | -7/Garrison Scavenger-Gunner | -7/Factory Scavenger-Mutant | -6/Factory Scavenger-Tank | -6/Garrison Scavenger-Mutant | -6/Factory Scavenger-Tank | -5/Factory Scavenger-Mutant | -5/Garrison Scavenger-Mutant | -5/Factory Scavenger-Tank | -4/Factory Scavenger-Gunner | -4/Garrison Scavenger-Gunner | -3/Research Scavenger-Tank | -3/Garrison Scavenger-Gunner | -3/Testing Botlord-Mutant | -3/Garrison Botlord-Mutant | -2/Research Botlord-Gunner | -2/Garrison Botlord-Gunner | -1/Access Resources | -11 -10 -9 -8 -8 -7 -7 -7 -6 -6 -6 -5 -5 -5 -4 -4 -3 -3 -3 -3 -2 -2 -1 ----------- Run | Scr Mat Mat Mat Sto Fac Gar Fac Fac Gar Fac Fac Gar Fac Fac Gar Res Gar Tes Gar Res Gar Acc Matter Collected 17188 | 239 65 347 954 537 . 684 481 476 770 1037 70 515 650 . 825 1700 1934 495 1463 64 1833 2049 Remotely . | . . . . . . . . . . . . . . . . . . . . . . . Salvage Created 18790 | . 110 593 1124 1403 . 901 301 437 1082 1077 160 773 839 . 779 2003 1745 76 827 64 1294 3202 Parts 815 | . 12 43 49 73 . 50 19 16 43 50 9 31 38 . 40 53 63 3 30 5 43 145 Haulers Intercepted 7 | . . 2 2 1 . . . . . . . . 2 . . . . . . . . . Recyclers Shooed 25 | . . 1 1 . . . . 2 . 6 . . 1 . . 7 . . . . . 7 Parts Field Recycled . | . . . . . . . . . . . . . . . . . . . . . . . Retrieved Matter . | . . . . . . . . . . . . . . . . . . . . . . . Parts Self-Destructed . | . . . . . . . . . . . . . . . . . . . . . . . Prevented . | . . . . . . . . . . . . . . . . . . . . . . . Kills | -11 -10 -9 -8 -8 -7 -7 -7 -6 -6 -6 -5 -5 -5 -4 -4 -3 -3 -3 -3 -2 -2 -1 ------- Run | Scr Mat Mat Mat Sto Fac Gar Fac Fac Gar Fac Fac Gar Fac Fac Gar Res Gar Tes Gar Res Gar Acc Combat Hostiles Destroyed 252 | . 4 10 18 25 . 20 5 3 22 9 2 15 6 . 12 13 26 1 13 2 14 32 Melee 4 | . . . . . . . . . . . . . . . . . . . 2 . . 2 Guns 187 | . 4 10 13 13 . 17 5 2 9 8 2 15 6 . 12 10 14 1 9 2 13 22 Cannons 41 | . . . 5 10 . 3 . . 13 1 . . . . . . 8 . . . . 1 AOE 9 | . . . . 2 . . . . . . . . . . . . 3 . 2 . . 2 Classes Destroyed 16 | . 3 5 2 3 . 1 1 . . . . . . . . . . . . . 1 . Worker 24 | . . 1 3 2 . . . 3 . 6 . . 2 . . 2 . . . . . 5 Builder 9 | . . . . 1 . . . . . . . . 1 . . . . . . . . 7 Tunneler 3 | . . 1 . . . . . . . . . . . . . 2 . . . . . . Hauler 7 | . . 2 2 1 . . . . . . . . 2 . . . . . . . . . Recycler 18 | . . . 1 . . . 1 1 . 3 . . 2 . . 6 . . . . . 4 Operator 4 | . . 1 1 1 . . . . . 1 . . . . . . . . . . . . Watcher 8 | . 2 1 1 1 . . 1 1 . 1 . . . . . . . . . . . . Swarmer 59 | . 3 . 3 . . 8 2 . 7 . . 4 3 . 3 . 15 . 6 2 1 2 Saboteur 1 | . . . . . . . . . . . . . . . . . . . . . 1 . Grunt 100 | . 1 7 9 15 . 6 . 2 8 4 . 9 . . 3 5 7 . 4 . 8 12 Brawler 5 | . . . . 2 . . . . . . . . . . . 1 2 . . . . . Duelist 7 | . . . . 1 . . 1 . 3 . . . . . 1 . . . 1 . . . Sentry 29 | . . 3 4 7 . 3 . 1 4 2 2 . 1 . . 1 . . 1 . . . Hunter 30 | . . . 2 . . 2 . . . . . 2 1 . 4 4 2 1 . . 2 10 Programmer 18 | . . . . . . . 2 . . 3 . . 1 . . 2 . . 2 . . 8 Behemoth 5 | . . . . . . 1 . . . . . . . . 1 . 1 . . . 2 . Best Kill Streak 9 | . 3 3 9 6 . 4 4 2 4 2 2 4 4 . 3 5 5 1 2 2 2 8 Combat Bots Only 9 | . 3 3 9 6 . 4 2 1 4 2 2 4 3 . 3 3 5 1 2 2 2 4 Max Kills in Single Turn 3 | . 1 1 1 2 . 2 1 1 2 1 1 2 2 . 2 2 3 1 2 1 1 3 Gunslinging 1 | . . . . . . 1 . . 1 . . 1 1 . 1 1 1 . . . . . Exploded 3 | . . . . 2 . . . . . . . . . . . . 3 . 2 . . 1 Melee 1 | . . . . . . . . . . . . . . . . . . . 1 . . 1 Uniques/NPCs Destroyed . | . . . . . . . . . . . . . . . . . . . . . . . Combat | -11 -10 -9 -8 -8 -7 -7 -7 -6 -6 -6 -5 -5 -5 -4 -4 -3 -3 -3 -3 -2 -2 -1 -------- Run | Scr Mat Mat Mat Sto Fac Gar Fac Fac Gar Fac Fac Gar Fac Fac Gar Res Gar Tes Gar Res Gar Acc Damage Taken 39109 | . 189 424 1348 1395 . 1834 525 303 2320 1068 96 1700 1599 . 2364 2283 3982 1747 2570 93 3943 9326 Core 5031 | . 63 78 324 196 . 210 47 47 246 38 . 325 106 . 122 370 171 232 500 17 319 1620 Absorbed by Shields 1525 | . . . . . . . 14 . 120 . . 38 . . 258 . 497 . 423 . 175 . Core Remaining (%) 60 | 100 74 80 . 5 . . 63 . . 61 . . 56 . 89 . . . 2 . 76 . Volleys Fired 1338 | . 17 50 96 96 . 59 33 34 87 93 4 66 60 . 56 85 137 16 58 5 123 163 Largest 5 | . 2 2 2 2 . 3 3 3 3 3 3 3 3 . 4 4 4 4 4 3 4 5 Hottest 321 | . 40 43 91 91 . 131 74 105 260 198 168 230 176 . 288 210 256 210 156 123 236 321 Shots Fired 2949 | . 34 98 187 186 . 151 83 65 192 184 12 143 109 . 161 200 319 42 124 11 267 381 Gun 2393 | . 34 98 137 108 . 131 75 57 105 138 12 139 90 . 154 189 208 38 101 9 239 331 Cannon 347 | . . . 50 76 . 20 . . 82 20 . . . . . . 76 . 8 . . 15 Launcher 8 | . . . . 2 . . . . . . . . . . . . 1 . 1 . 1 3 Special 201 | . . . . . . . 8 8 5 26 . 4 19 . 7 11 34 4 14 2 27 32 Kinetic 1720 | . 34 98 124 108 . 112 75 50 61 42 4 54 60 . 116 106 193 26 109 6 132 210 Thermal 811 | . . . 63 76 . 39 . 7 126 83 4 85 16 . 38 24 71 12 . 3 107 57 Explosive 8 | . . . . 2 . . . . . . . . . . . . 1 . 1 . 1 3 Electromagnetic 209 | . . . . . . . . . . 33 4 . 14 . . 59 20 . . . . 79 Robot Hit Streak 33 | . 5 19 29 33 . 14 12 12 15 9 12 16 18 . 8 16 17 6 8 2 17 14 Robot Miss Streak 7 | . 4 4 5 4 . 7 6 2 4 5 1 4 4 . 6 5 5 4 4 4 3 7 Penetration Max 2 | . . . . . . 1 . . . 2 . . . . 1 1 1 2 . . 1 1 Secondary Targets 27 | . . 1 . 1 . 2 . . 2 . . 3 2 . 6 2 2 . 2 . . 4 Max Gunslinging Chain 2 | . . 1 . 1 . 1 . . 1 . . 1 1 . 2 1 1 . 1 . . 1 Shots Hit Robots 1893 | . 18 74 134 134 . 96 54 44 124 127 12 102 74 . 88 123 178 17 87 3 182 222 Core Hits 771 | . 11 32 47 62 . 41 15 16 57 41 16 49 24 . 43 48 76 5 31 4 48 105 Critical Hits 80 | . . . 13 7 . 3 . 2 2 4 . 2 2 . 2 3 17 2 1 . 4 16 Critical Kills 35 | . . . 8 3 . 3 . 1 1 1 . 1 1 . . 1 6 . 1 . 2 6 Critical Parts Destroyed 40 | . . . 5 3 . . . 1 1 3 . 1 1 . 2 1 9 2 . . 2 9 Melee Attacks 62 | . . . . . . . . 1 . 15 2 . . . . 2 10 . 16 1 8 7 Thermal 9 | . . . . . . . . . . . . . . . . . . . . . 8 1 Impact . | . . . . . . . . . . . . . . . . . . . . . . . Slashing 2 | . . . . . . . . . . . 2 . . . . . . . . . . . Piercing 51 | . . . . . . . . 1 . 15 . . . . . 2 10 . 16 1 . 6 Sneak Attacks 1 | . . . . . . . . . . . . . . . . . . . 1 . . . Combat Hostiles . | . . . . . . . . . . . . . . . . . . . . . . . Follow-up Attacks . | . . . . . . . . . . . . . . . . . . . . . . . Damage Inflicted 38612 | . 126 796 2097 2653 . 1576 648 675 2711 2719 275 2110 1440 . 1674 2871 3814 354 2493 92 3463 6025 Guns 30420 | . 126 796 1324 1101 . 1256 648 675 1408 2387 275 2110 1440 . 1674 2871 2235 354 1294 92 3463 4891 Cannons 4971 | . . . 773 1247 . 320 . . 1303 306 . . . . . . 564 . 27 . . 431 Explosions 1240 | . . . . 305 . . . . . 26 . . . . . . 175 . 273 . . 461 Melee 1895 | . . . . . . . . . . . . . . . . . 840 . 899 . . 156 Ramming 86 | . . . . . . . . . . . . . . . . . . . . . . 86 Kinetic 18822 | . 126 796 1105 1101 . 1044 648 521 681 760 104 723 920 . 1048 1322 1755 267 1321 92 1701 2787 Thermal 12695 | . . . 992 1247 . 532 . 154 2030 1334 89 1387 334 . 626 338 861 87 . . 1762 922 Explosive 1214 | . . . . 305 . . . . . . . . . . . . 175 . 273 . . 461 Electromagnetic 3900 | . . . . . . . . . . 625 82 . 186 . . 1211 183 . . . . 1613 Impact . | . . . . . . . . . . . . . . . . . . . . . . . Slashing . | . . . . . . . . . . . . . . . . . . . . . . . Piercing 1895 | . . . . . . . . . . . . . . . . . 840 . 899 . . 156 Highest Corruption 27 | . . . . . . . 1 4 4 6 . . 1 . . 4 9 9 9 . . 27 Average Corruption 7 | . . . . . . . 1 4 4 5 . . 1 . . 3 8 9 9 . . 12 Corruption Purged 1 | . . . . . . . . . . 1 . . . . . . . . . . . . Effects 400 | . . . . . . . 1 5 28 55 . . . . . 16 125 9 51 . . 110 Message Errors 73 | . . . . . . . . 1 5 7 . . . . . 3 31 2 10 . . 14 Matter Fused 74 | . . . . . . . . 1 8 15 . . . . . 3 23 1 9 . . 14 Heat Flow Errors 26 | . . . . . . . . . 2 5 . . . . . . 8 1 5 . . 5 Energy Discharges 35 | . . . . . . . . 2 3 7 . . . . . 1 13 1 1 . . 7 Parts Rejected 4 | . . . . . . . . . 1 . . . . . . . 1 . . . . 2 Data Loss (minor) 30 | . . . . . . . 1 . 1 6 . . . . . 3 6 . 6 . . 7 Data Loss (major) 10 | . . . . . . . . . . 3 . . . . . . 3 . 2 . . 2 Misfires 15 | . . . . . . . . . . 2 . . . . . . 7 . 4 . . 2 Alerts 2 | . . . . . . . . . . . . . . . . . . . . . . 2 Misdirections 6 | . . . . . . . . . . . . . . . . . . . . . . 6 Targeting Errors 106 | . . . . . . . . 1 7 8 . . . . . 5 28 4 10 . . 43 Weapon Failures 19 | . . . . . . . . . 1 2 . . . . . 1 5 . 4 . . 6 Overload Shots 6 | . . . . . . . . . . . . . . . 6 . . . . . . . Overflow Damage 249 | . . . . 28 . . . . 25 68 . . . . . . 78 . 50 . . . Projectiles 37 | . . . . 12 . . . . 25 . . . . . . . . . . . . . Explosions 111 | . . . . 16 . . . . . 68 . . . . . . 5 . 22 . . . Melee 101 | . . . . . . . . . . . . . . . . . 73 . 28 . . . Knockbacks 6 | . . . . . . . . . . . . . . . . . 4 . 1 . . 1 Impact 1 | . . . . . . . . . . . . . . . . . . . . . . 1 Kinetic 5 | . . . . . . . . . . . . . . . . . 4 . 1 . . . Secondary . | . . . . . . . . . . . . . . . . . . . . . . . Self-Inflicted Damage 124 | . . . . . . . . . . 82 . . . . . . . . . . . 42 Shots 2 | . . . . . . . . . . 1 . . . . . . . . . . . 1 Rammed 33 | . . . . . . . . . . . . . . . . . . . . . . 33 Targets Rammed 33 | . . . . . . . . . . . . . . . . . . . . . . 33 Kicked . | . . . . . . . . . . . . . . . . . . . . . . . Crushed . | . . . . . . . . . . . . . . . . . . . . . . . Highest Temperature 376 | . 6 . 60 155 . 198 195 163 311 219 . 108 . . 340 199 302 90 135 . 198 376 Average Temperature 83 | . 6 . 26 43 . 76 82 43 123 54 . 31 . . 64 90 94 38 52 . 86 102 Received Heat Transfer 4840 | . 18 195 468 693 . 201 9 132 423 225 18 565 30 . 144 90 288 12 117 . 537 675 Effects 5 | . . . . . . . . . . . . . . . 2 . . . . . . 3 Interference 5 | . . . . . . . . . . . . . . . 2 . . . . . . 3 Siege Activations . | . . . . . . . . . . . . . . . . . . . . . . . Robots Corrupted 9 | . . . . . . . . . . 1 . . . . . 3 . . . . . 5 Combat Hostiles 7 | . . . . . . . . . . . . . . . . 3 . . . . . 4 Parts Fried 29 | . . . . . . . . . . 2 . . . . . 12 1 . . . . 14 Impact Corruptions . | . . . . . . . . . . . . . . . . . . . . . . . Robots Melted 4 | . . . . . . . . 1 . . . . . . . . 1 . . . 1 1 Combat Hostiles 4 | . . . . . . . . 1 . . . . . . . . 1 . . . 1 1 Parts Melted 47 | . . . 3 4 . 2 . 1 6 6 . 3 1 . . 2 6 . 2 . 4 7 Heat Transferred 21591 | . . . 1887 2257 . 1002 . 350 3633 2396 200 1793 648 . 1031 750 1709 200 . . 2551 1184 Parts Sabotaged . | . . . . . . . . . . . . . . . . . . . . . . . Parts Stolen . | . . . . . . . . . . . . . . . . . . . . . . . Parts Stripped . | . . . . . . . . . . . . . . . . . . . . . . . Power Chain Reactions . | . . . . . . . . . . . . . . . . . . . . . . . Missiles Intercepted . | . . . . . . . . . . . . . . . . . . . . . . . Alert | -11 -10 -9 -8 -8 -7 -7 -7 -6 -6 -6 -5 -5 -5 -4 -4 -3 -3 -3 -3 -2 -2 -1 ------- Run | Scr Mat Mat Mat Sto Fac Gar Fac Fac Gar Fac Fac Gar Fac Fac Gar Res Gar Tes Gar Res Gar Acc Peak Influence 940 | . 119 217 295 495 159 767 459 183 529 324 223 634 332 4 210 167 940 705 736 462 921 552 Initial 552 | . . 50 11 124 159 111 402 158 85 277 144 156 332 4 2 117 69 528 431 414 346 552 Average 334 | . 72 99 103 305 159 485 359 131 314 183 175 398 120 4 100 77 573 651 598 429 601 276 Maximum Alert Level 3 | . . 1 1 2 . 3 2 . 2 1 1 2 1 . 1 . 3 3 3 2 3 2 Low Security (%) 36 | 100 100 94 90 12 100 17 . 100 21 46 73 6 73 100 91 100 9 . . . . 19 Level 1 31 | . . 5 9 83 . 23 57 . 52 53 26 49 26 . 8 . 18 . . . 32 69 Level 2 22 | . . . . 4 . 32 42 . 25 . . 44 . . . . 45 98 80 100 29 10 Level 3 9 | . . . . . . 26 . . . . . . . . . . 26 1 19 . 37 . Level 4 . | . . . . . . . . . . . . . . . . . . . . . . . Level 5 . | . . . . . . . . . . . . . . . . . . . . . . . High Security . | . . . . . . . . . . . . . . . . . . . . . . . Max Security . | . . . . . . . . . . . . . . . . . . . . . . . Squads Dispatched 44 | . 1 1 1 6 . . 4 1 . 4 1 . . . . 7 . 5 . . . 13 Investigation 4 | . . . . . . . . 1 . 1 . . . . . . . . . . . 2 Extermination 11 | . . . . . . . 3 . . 3 . . . . . 2 . . . . . 3 Reinforcement 14 | . 1 1 1 3 . . 1 . . . . . . . . 1 . 4 . . . 2 Assault . | . . . . . . . . . . . . . . . . . . . . . . . Garrison 15 | . . . . 3 . . . . . . 1 . . . . 4 . 1 . . . 6 Intercept . | . . . . . . . . . . . . . . . . . . . . . . . Construction Impeded 6 | . . . . 1 . . 1 . . . . . . . . . . 2 . . . 2 Haulers Reinforced . | . . . . . . . . . . . . . . . . . . . . . . . Alert ID Control Effect 10 | . . . . . . . . . . . . . . . . . . . . . 6 4 Stealth | -11 -10 -9 -8 -8 -7 -7 -7 -6 -6 -6 -5 -5 -5 -4 -4 -3 -3 -3 -3 -2 -2 -1 --------- Run | Scr Mat Mat Mat Sto Fac Gar Fac Fac Gar Fac Fac Gar Fac Fac Gar Res Gar Tes Gar Res Gar Acc Distress Signals 22 | . . 1 8 4 . . 3 . . 2 . . . . . 2 . 2 . . . . Communications Jammed . | . . . . . . . . . . . . . . . . . . . . . . . Distress Signals . | . . . . . . . . . . . . . . . . . . . . . . . Times Spotted 483 | . 10 19 40 36 . 20 10 9 30 27 2 25 19 . 26 34 39 17 23 4 37 56 Peak Tracking Total 7 | . 4 4 6 6 . 4 3 3 4 4 1 4 7 . 6 5 6 7 6 4 7 6 Tactical Retreats 35 | . 1 . 6 . . . . . 3 3 . . 2 . 4 1 1 . 6 . 6 2 Traps | -11 -10 -9 -8 -8 -7 -7 -7 -6 -6 -6 -5 -5 -5 -4 -4 -3 -3 -3 -3 -2 -2 -1 ------- Run | Scr Mat Mat Mat Sto Fac Gar Fac Fac Gar Fac Fac Gar Fac Fac Gar Res Gar Tes Gar Res Gar Acc Traps Triggered 37 | . . . . 2 . 2 1 . 6 1 . 3 . . 3 1 8 . 3 . 5 2 Indirectly . | . . . . . . . . . . . . . . . . . . . . . . . Trap Hack Attempts . | . . . . . . . . . . . . . . . . . . . . . . . Triggered . | . . . . . . . . . . . . . . . . . . . . . . . Disarmed . | . . . . . . . . . . . . . . . . . . . . . . . Reprogrammed . | . . . . . . . . . . . . . . . . . . . . . . . Reused . | . . . . . . . . . . . . . . . . . . . . . . . Traps Extracted . | . . . . . . . . . . . . . . . . . . . . . . . Installed . | . . . . . . . . . . . . . . . . . . . . . . . Triggered . | . . . . . . . . . . . . . . . . . . . . . . . Machines | -11 -10 -9 -8 -8 -7 -7 -7 -6 -6 -6 -5 -5 -5 -4 -4 -3 -3 -3 -3 -2 -2 -1 ---------- Run | Scr Mat Mat Mat Sto Fac Gar Fac Fac Gar Fac Fac Gar Fac Fac Gar Res Gar Tes Gar Res Gar Acc Machines Disabled 48 | . . . 2 . . 1 . 1 5 10 . 4 . . 3 . 6 . 5 . 10 1 Max in Single Turn 2 | . . . 1 . . 1 . 1 1 2 . 1 . . 1 . 2 . 1 . 2 1 Garrison Relay 20 | . . . . . . 1 . . 1 . . 4 . . 3 . 3 . 3 . 5 . Phase Generator 2 | . . . . . . . . . . . . . . . . . 1 . . . 1 . Machines Sabotaged . | . . . . . . . . . . . . . . . . . . . . . . . Garrisons Compromised . | . . . . . . . . . . . . . . . . . . . . . . . Overloaded Fab Kills . | . . . . . . . . . . . . . . . . . . . . . . . Fab Network Shutdowns . | . . . . . . . . . . . . . . . . . . . . . . . Hacking | -11 -10 -9 -8 -8 -7 -7 -7 -6 -6 -6 -5 -5 -5 -4 -4 -3 -3 -3 -3 -2 -2 -1 --------- Run | Scr Mat Mat Mat Sto Fac Gar Fac Fac Gar Fac Fac Gar Fac Fac Gar Res Gar Tes Gar Res Gar Acc Machines Accessed 56 | . 4 6 7 7 1 . 2 5 . 6 1 . 4 1 . 5 . 1 . 2 . 4 Terminals 33 | . 3 4 6 5 . . 1 3 . 4 . . 3 . . 1 . . . . . 3 Fabricators 1 | . . . . . . . . . . 1 . . . . . . . . . . . . Repair Stations . | . . . . . . . . . . . . . . . . . . . . . . . Recycling Units 9 | . 1 . 1 2 . . 1 1 . . . . 1 . . 1 . . . . . 1 Scanalyzers 6 | . . 2 . . . . . . . 1 . . . . . 2 . . . 1 . . Garrison Access 7 | . . . . . 1 . . 1 . . 1 . . 1 . 1 . 1 . 1 . . Total Hacks 110 | . 9 14 12 15 1 . 3 9 . 11 2 . 10 2 . 11 . 2 . 3 . 6 Successful 59 | . 2 9 7 7 1 . 1 4 . 5 2 . 6 2 . 8 . 2 . 2 . 1 Failed 51 | . 7 5 5 8 . . 2 5 . 6 . . 4 . . 3 . . . 1 . 5 Catastrophic 12 | . 1 1 1 1 . . 1 3 . 2 . . 1 . . . . . . . . 1 Database Lockouts . | . . . . . . . . . . . . . . . . . . . . . . . Manual 33 | . 6 3 6 9 . . 1 2 . . . . 4 . . 1 . . . . . 1 Terminals 66 | . 7 7 11 10 . . 2 5 . 8 . . 9 . . 2 . . . . . 5 Fabricators 2 | . . . . . . . . . . 2 . . . . . . . . . . . . Repair Stations . | . . . . . . . . . . . . . . . . . . . . . . . Recycling Units 14 | . 2 . 1 5 . . 1 2 . . . . 1 . . 1 . . . . . 1 Scanalyzers 15 | . . 7 . . . . . . . 1 . . . . . 6 . . . 1 . . Garrison Access 13 | . . . . . 1 . . 2 . . 2 . . 2 . 2 . 2 . 2 . . Terminal Hacks 27 | . 2 3 6 4 . . . 1 . 3 . . 5 . . 2 . . . . . 1 Record 1 | . . . . . . . . . . . . . 1 . . . . . . . . . Robot Analysis 1 | . 1 . . . . . . . . . . . . . . . . . . . . . Open Door 2 | . . . . 2 . . . . . . . . . . . . . . . . . . Level Access Points 2 | . . . . . . . . . . 1 . . 1 . . . . . . . . . Branch Access Points 3 | . . 1 1 . . . . . . . . . 1 . . . . . . . . . Terminal Index 2 | . . . 1 . . . . . . . . . . . . 1 . . . . . . Unreport Threat 7 | . . 1 1 1 . . . . . 1 . . 1 . . 1 . . . . . 1 Locate Traps 3 | . . . . 1 . . . 1 . . . . 1 . . . . . . . . . Security Status 1 | . . . 1 . . . . . . . . . . . . . . . . . . . Recall Investigation 1 | . . . . . . . . . . 1 . . . . . . . . . . . . Recall Reinforcements 2 | . 1 . 1 . . . . . . . . . . . . . . . . . . . Registered Components 1 | . . 1 . . . . . . . . . . . . . . . . . . . . Zone Layout 1 | . . . 1 . . . . . . . . . . . . . . . . . . . Fabricator Hacks 2 | . . . . . . . . . . 2 . . . . . . . . . . . . Load Schematic 1 | . . . . . . . . . . 1 . . . . . . . . . . . . Build 1 | . . . . . . . . . . 1 . . . . . . . . . . . . Repair Station Hacks . | . . . . . . . . . . . . . . . . . . . . . . . Recycling Unit Hacks . | . . . . . . . . . . . . . . . . . . . . . . . Scanalyzer 9 | . . 6 . . . . . . . . . . . . . 3 . . . . . . Insert Component 5 | . . 3 . . . . . . . . . . . . . 2 . . . . . . Analyze 4 | . . 3 . . . . . . . . . . . . . 1 . . . . . . Garrison Access Hacks 13 | . . . . . 1 . . 2 . . 2 . . 2 . 2 . 2 . 2 . . Unlock Access 7 | . . . . . 1 . . 1 . . 1 . . 1 . 1 . 1 . 1 . . Coupler Status 6 | . . . . . . . . 1 . . 1 . . 1 . 1 . 1 . 1 . . Unauthorized Hacks 8 | . . . 1 3 . . 1 1 . . . . 1 . . 1 . . . . . . Terminals . | . . . . . . . . . . . . . . . . . . . . . . . Fabricators . | . . . . . . . . . . . . . . . . . . . . . . . Repair Stations . | . . . . . . . . . . . . . . . . . . . . . . . Recycling Units 8 | . . . 1 3 . . 1 1 . . . . 1 . . 1 . . . . . . Reject 7 | . . . 1 2 . . 1 1 . . . . 1 . . 1 . . . . . . Mask 1 | . . . . 1 . . . . . . . . . . . . . . . . . . Scanalyzers . | . . . . . . . . . . . . . . . . . . . . . . . Garrison Access . | . . . . . . . . . . . . . . . . . . . . . . . Data Cores Recovered 1 | . . . 1 . . . . . . . . . . . . . . . . . . . Used 1 | . . . 1 . . . . . . . . . . . . . . . . . . . Hacking Detections 44 | . 4 6 6 4 1 . 1 4 . 5 1 . 2 1 . 3 . 1 . 1 . 4 Full Trace Events 3 | . . . . 1 . . . 1 . 1 . . . . . . . . . . . . Feedback Events . | . . . . . . . . . . . . . . . . . . . . . . . Feedback Blocked . | . . . . . . . . . . . . . . . . . . . . . . . Robot Schematics Acquired . | . . . . . . . . . . . . . . . . . . . . . . . Robots Built . | . . . . . . . . . . . . . . . . . . . . . . . Matter . | . . . . . . . . . . . . . . . . . . . . . . . Time . | . . . . . . . . . . . . . . . . . . . . . . . Total Robot Build Rating . | . . . . . . . . . . . . . . . . . . . . . . . Part Schematics Acquired 4 | . . 3 . . . . . . . . . . . . . 1 . . . . . . Parts Built 1 | . . . . . . . . . . 1 . . . . . . . . . . . . Matter 186 | . . . . . . . . . . 186 . . . . . . . . . . . . Time 99 | . . . . . . . . . . 99 . . . . . . . . . . . . Total Part Build Rating 2 | . . . . . . . . . . 2 . . . . . . . . . . . . Parts Repaired . | . . . . . . . . . . . . . . . . . . . . . . . Time . | . . . . . . . . . . . . . . . . . . . . . . . Parts Recycled . | . . . . . . . . . . . . . . . . . . . . . . . Recycled Matter . | . . . . . . . . . . . . . . . . . . . . . . . Retrieved Matter . | . . . . . . . . . . . . . . . . . . . . . . . Retrieved Components . | . . . . . . . . . . . . . . . . . . . . . . . Parts Scanalyzed 5 | . . 3 . . . . . . . . . . . . . 2 . . . . . . Part Schematics Acquired 4 | . . 3 . . . . . . . . . . . . . 1 . . . . . . Parts Damaged . | . . . . . . . . . . . . . . . . . . . . . . . Bothacking | -11 -10 -9 -8 -8 -7 -7 -7 -6 -6 -6 -5 -5 -5 -4 -4 -3 -3 -3 -3 -2 -2 -1 ------------ Run | Scr Mat Mat Mat Sto Fac Gar Fac Fac Gar Fac Fac Gar Fac Fac Gar Res Gar Tes Gar Res Gar Acc Used RIF Installer 7 | . . . . . . 1 . . 1 . . 1 . . 1 . 1 . 1 . 1 . Zone Cloak 1 | . . . . . . . . . . . . 1 . . . . . . . . . . Patrol Navigation 1 | . . . . . . . . . . . . . . . 1 . . . . . . . Alert ID Control 1 | . . . . . . . . . . . . . . . . . . . . . 1 . Structural Interface 1 | . . . . . . . . . 1 . . . . . . . . . . . . . Autooverride 2 | . . . . . . . . . . . . . . . . . 1 . 1 . . . Robots Hacked 106 | . . . . . . . 5 4 2 8 . 3 9 . 5 9 12 4 10 2 18 15 Non-combat 24 | . . . . . . . 4 3 . 8 . . 5 . . 3 . . . . . 1 Combat 82 | . . . . . . . 1 1 2 . . 3 4 . 5 6 12 4 10 2 18 14 Autooverrided 21 | . . . . . . . . . . . . . . . . . 3 2 2 1 8 5 Robot Hacks Applied 101 | . . . . . . . 6 4 3 10 . 4 12 . 5 9 11 2 8 1 14 12 parse_system 2 | . . . . . . . . . . . . . . . . . 1 . . . 1 . no_distress 2 | . . . . . . . . . . . . . 2 . . . . . . . . . find_chute 1 | . . . . . . . . 1 . . . . . . . . . . . . . . ignore_repairs 1 | . . . . . . . . . . 1 . . . . . . . . . . . . map_walls 7 | . . . . . . . . 2 . 4 . . . . . 1 . . . . . . map_earth 1 | . . . . . . . 1 . . . . . . . . . . . . . . . locate_stockpiles 1 | . . . . . . . . . . . . . 1 . . . . . . . . . find_recycling 2 | . . . . . . . . . . 1 . . 1 . . . . . . . . . ignore_parts 7 | . . . . . . . 1 . . 1 . . 3 . . 1 . . . . . 1 map_route 4 | . . . . . . . 1 . . 2 . . . . . 1 . . . . . . relay_feed 3 | . . . . . . . 2 . . 1 . . . . . . . . . . . . find_shortcuts 1 | . . . . . . . . . . . . . . . . . . . . . . 1 scatter_targeting 4 | . . . . . . . . . . . . . 1 . . . . . 1 . 1 1 mark_system 1 | . . . . . . . . . . . . 1 . . . . . . . . . . broadcast_data 3 | . . . . . . . . . 1 . . . . . . . 1 . . . 1 . disrupt_area 4 | . . . . . . . . . 1 . . . . . 1 . 1 . . . . 1 spike_heat 2 | . . . . . . . . . . . . . . . . . 1 . . . 1 . overload_power 1 | . . . . . . . . . . . . . . . . . 1 . . . . . amplify_resonance 7 | . . . . . . . . . . . . . . . . 2 2 1 1 1 . . wipe_record 1 | . . . . . . . . . . . . . . . . . 1 . . . . . reboot_system 1 | . . . . . . . . . . . . . 1 . . . . . . . . . go_dormant 1 | . . . . . . . . . . . . 1 . . . . . . . . . . overwrite_iff 9 | . . . . . . . 1 . . . . . 1 . . . 1 . . . 1 5 streamctrl_high 1 | . . . . . . . . . . . . . . . 1 . . . . . . . formatsys_high 34 | . . . . . . . . 1 1 . . 2 2 . 3 4 2 1 6 . 9 3 Relay Couplers Released 76 | . . . . . . 5 . . 3 . . 15 . . 11 . 11 . 11 . 20 . Machine Destruction 76 | . . . . . . 5 . . 3 . . 15 . . 11 . 11 . 11 . 20 . Attached 39 | . . . . . . . 2 . 1 1 . 4 1 . 4 3 6 1 5 2 9 . Robots Rewired 10 | . . . . . . . . . . 3 . . . . . . 6 . . . . 1 Allies Hacked 3 | . . . . . . . . . . 1 . . . . . . . . . . . 2 Hacks Repelled . | . . . . . . . . . . . . . . . . . . . . . . . Allies | -11 -10 -9 -8 -8 -7 -7 -7 -6 -6 -6 -5 -5 -5 -4 -4 -3 -3 -3 -3 -2 -2 -1 -------- Run | Scr Mat Mat Mat Sto Fac Gar Fac Fac Gar Fac Fac Gar Fac Fac Gar Res Gar Tes Gar Res Gar Acc Total Allies 74 | . . . . 1 . . 1 1 1 3 . 2 3 . 4 4 12 3 8 1 17 13 Largest Group 9 | . . . . 1 . . 1 1 1 2 . 2 2 1 2 2 9 9 2 . 4 2 Highest-Rated Group 476 | . . . . 99 . . 16 29 29 73 . 76 76 47 94 111 462 476 115 . 232 132 Highest-Rated Ally 147 | . . . . 99 . . 16 29 29 47 . 47 47 47 58 64 64 64 115 . 147 69 Total Orders 46 | . . . . 3 3 2 5 . . 6 . 2 . 3 . 6 6 . . . 6 4 STAY 18 | . . . . . 1 1 . . . 3 . 1 . . . 4 4 . . . 3 1 FOLLOW 15 | . . . . 1 1 1 . . . 3 . 1 . 1 . 2 2 . . . 3 . EXPLORE 13 | . . . . 2 1 . 5 . . . . . . 2 . . . . . . . 3 Ally Attacks 332 | . . . . . . . 6 7 10 19 . 14 31 . 13 36 18 39 33 . 63 43 Total Damage 9901 | . . . . . . . 46 94 156 670 . 216 665 . 325 1493 590 1529 1249 . 1595 1273 Kills 41 | . . . . . . . . . 1 3 . 2 1 . 1 6 6 7 4 . 6 4 Allies Corrupted 3 | . . . . 2 . . . . . . . . . . . . . . . . . 1 Allies Melted . | . . . . . . . . . . . . . . . . . . . . . . . Intel | -11 -10 -9 -8 -8 -7 -7 -7 -6 -6 -6 -5 -5 -5 -4 -4 -3 -3 -3 -3 -2 -2 -1 ------- Run | Scr Mat Mat Mat Sto Fac Gar Fac Fac Gar Fac Fac Gar Fac Fac Gar Res Gar Tes Gar Res Gar Acc Robot Analysis Total 1 | . 1 . . . . . . . . . . . . . . . . . . . . . Derelict Logs Recovered . | . . . . . . . . . . . . . . . . . . . . . . . Drone Launches 19 | . . . . 10 . . . . . . . . 6 . . . . . . . . 3 Drone Recoveries 1 | . . . . . . . . . . . . . . . . . . . . . . 1 Exploration | -11 -10 -9 -8 -8 -7 -7 -7 -6 -6 -6 -5 -5 -5 -4 -4 -3 -3 -3 -3 -2 -2 -1 ------------- Run | Scr Mat Mat Mat Sto Fac Gar Fac Fac Gar Fac Fac Gar Fac Fac Gar Res Gar Tes Gar Res Gar Acc Turns Passed 22568 | 43 214 738 1196 1093 25 938 752 600 1061 1796 96 1437 900 162 1321 1325 3030 212 1115 220 2379 1915 Spaces Moved 12233 | 31 138 449 695 429 10 569 396 390 534 884 52 930 532 127 807 656 1612 114 654 149 1296 779 Core 75 | 4 . . . . . . . . . . . . 5 . . . . . . . . 66 Treads 982 | . . . . 161 . . . . . . . . . . . . 810 1 1 . . 9 Legs 52 | . . . . . . . . . 16 . . . . . 14 . 22 . . . . . Wheels 11081 | 27 138 449 695 268 10 569 396 390 518 884 52 930 527 127 793 656 780 113 653 149 1296 661 Hover 43 | . . . . . . . . . . . . . . . . . . . . . . 43 Flight . | . . . . . . . . . . . . . . . . . . . . . . . Fastest Speed 44 | 50 100 100 90 100 120 103 103 103 96 103 100 100 100 100 100 113 100 100 110 110 110 44 Average Speed 122 | 93 100 108 98 150 120 108 111 115 133 117 107 120 122 100 119 118 140 106 115 117 134 129 Slowest Speed 1250 | 100 100 110 110 230 120 120 120 120 270 150 113 150 1200 100 210 170 270 165 160 130 190 1250 Overloaded Moves . | . . . . . . . . . . . . . . . . . . . . . . . Propulsion Burnouts . | . . . . . . . . . . . . . . . . . . . . . . . Robots Hopped . | . . . . . . . . . . . . . . . . . . . . . . . Cave-ins Triggered . | . . . . . . . . . . . . . . . . . . . . . . . Exploration Rate (%) 38 | 3 19 31 53 88 1 56 16 11 48 23 1 97 16 4 78 17 94 24 74 6 98 23 Regions Visited 22 Branch Regions 2 Pre-discovered Areas 1 | . . . . 1 . . . . . . . . . . . . . . . . . . Known Exits Taken 10 | . . . 1 . 1 . . 1 . 1 1 . 1 1 . 1 . 1 . 1 . . Unknown Exits Taken 5 | 1 1 1 . 1 . . 1 . . . . . . . . . . . . . . . Scrap Searched . | . . . . . . . . . . . . . . . . . . . . . . . Spaces Dug 22 | . . . . . . . . 1 . 7 2 . . . 1 1 9 . . 1 . . Terrain Destroyed 451 | . . . . 7 . . . 1 2 37 2 . 5 . 11 5 110 1 10 1 205 54 Melee 12 | . . . . . . . . 1 . 7 2 . . . . 1 . . . 1 . . Projectile 54 | . . . . . . . . . 2 1 . . 5 . 11 4 21 1 1 . 6 2 AOE 385 | . . . . 7 . . . . . 29 . . . . . . 89 . 9 . 199 52 Terrain Rammed . | . . . . . . . . . . . . . . . . . . . . . . . Walls Destroyed . | . . . . . . . . . . . . . . . . . . . . . . . Machines Disabled . | . . . . . . . . . . . . . . . . . . . . . . . Actions | -11 -10 -9 -8 -8 -7 -7 -7 -6 -6 -6 -5 -5 -5 -4 -4 -3 -3 -3 -3 -2 -2 -1 --------- Run | Scr Mat Mat Mat Sto Fac Gar Fac Fac Gar Fac Fac Gar Fac Fac Gar Res Gar Tes Gar Res Gar Acc Total 17479 | 44 186 610 1029 694 22 776 655 493 745 1482 79 1132 690 161 1057 1041 2149 178 915 185 1732 1424 Wait 2135 | . 27 69 158 122 10 90 196 33 32 369 8 41 24 31 74 173 223 20 65 1 128 241 Move 12216 | 30 137 448 694 428 10 568 395 389 533 883 52 929 531 127 806 655 1611 114 653 149 1295 779 Hop . | . . . . . . . . . . . . . . . . . . . . . . . Pick Up 409 | 8 4 23 27 7 . 19 5 11 19 24 4 23 15 1 25 28 34 2 38 3 32 57 Fast Attach 186 | . . . 7 5 . 5 1 3 13 18 1 7 18 1 17 12 26 10 . 5 19 18 Attach 325 | 6 1 8 15 4 . 16 3 8 19 15 3 17 12 1 19 20 25 1 36 1 26 69 Detach 16 | . . . . . . . . . . . . . . . . 1 1 1 4 2 1 6 Swap 248 | . . 4 7 11 2 6 11 4 12 31 2 4 8 . 13 25 27 5 9 9 41 17 Drop 344 | . . 8 25 14 . 13 4 9 13 33 3 20 19 . 22 29 38 9 12 9 32 32 Fire 1338 | . 17 50 96 96 . 59 33 34 87 93 4 66 60 . 56 85 137 16 58 5 123 163 Melee 62 | . . . . . . . . 1 . 15 2 . . . . 2 10 . 16 1 8 7 Ram 33 | . . . . . . . . . . . . . . . . . . . . . . 33 Kick . | . . . . . . . . . . . . . . . . . . . . . . . Crush . | . . . . . . . . . . . . . . . . . . . . . . . Escape Stasis 147 | . . . . 2 . . 7 . 16 . . 24 . . 24 8 16 . 24 . 26 . Rewire 12 | . . . . . . . . 1 1 1 . 1 . . 1 3 1 . . . 1 2 Trap . | . . . . . . . . . . . . . . . . . . . . . . . Miscellaneous 8 | . . . . 5 . . . . . . . . 3 . . . . . . . . . Route ------- -11/Scrapyard -10/Materials -9/Materials (discovered 3 exits: *Mat / Min x2) -8/Materials (discovered 2 exits: *Sto x2) -8/Storage -7/Factory -7/Garrison (discovered 2 exits: *Fac x2) -7/Factory (discovered 2 exits: *Fac / [Low]) -6/Factory (discovered 2 exits: *Fac / Gar) -6/Garrison -6/Factory (discovered 4 exits: *Fac x4) -5/Factory -5/Garrison (discovered 3 exits: *Fac x3) -5/Factory (discovered 6 exits: *Fac x4 / Upp x2) -4/Factory -4/Garrison -3/Research -3/Garrison (discovered 3 exits: *Tes x3) -3/Testing -3/Garrison (discovered 2 exits: *Res x2) -2/Research -2/Garrison (discovered 3 exits: *Acc x3) -1/Access History --------- Turn | Location | Event 21 | -11/Scrapyard | Discovered new exit (range 15) 44 | -11/Scrapyard | Entered Materials 215 | -10/Materials | Discovered new exit (range 16) 258 | -10/Materials | Entered another Materials area 258 | -9/Materials | Evolved 2 slots: Utility x2 336 | -9/Materials | Build established: Mutant 479 | -9/Materials | Identified exit to Mines 902 | -9/Materials | Discovered new exit (range 8) 996 | -9/Materials | Entered another Materials area 996 | -8/Materials | Evolved 2 slots: Power x1, Propulsion x1 1282 | -8/Materials | Build established: Scavenger-Mutant 1844 | -8/Materials | Identified exit to Storage 2063 | -8/Materials | Core integrity fell below 50% 2129 | -8/Materials | Destroyed 9 combat bots 2192 | -8/Materials | Entered Storage 2454 | -8/Storage | Garrison activated, responded to threat 2798 | -8/Storage | Learned location of Armory (-4) 2843 | -8/Storage | Core integrity fell below 20% 3167 | -8/Storage | Discovered new exit (range 28) 3208 | -8/Storage | Met 01-MTF 3285 | -8/Storage | Entered Factory 3285 | -7/Factory | Accompanied by 9 allies (01-MTF) 3285 | -7/Factory | Evolved 2 slots: Propulsion x1, Weapon x1 3290 | -7/Factory | 01-MTF left 3302 | -7/Factory | Identified exit to Garrison 3310 | -7/Factory | Entered Garrison 3310 | -7/Garrison | Accompanied by 8 allies 3456 | -7/Garrison | Spotted B-75 Beast 3476 | -7/Garrison | Destroyed B-75 Beast 3562 | -7/Garrison | Triggered checkpoint 3585 | -7/Garrison | Build established: Scavenger-Tank 3780 | -7/Garrison | Triggered checkpoint 3857 | -7/Garrison | Garrison Relay disabled 3919 | -7/Garrison | Discovered new exit (range 15) 4012 | -7/Garrison | Triggered checkpoint 4065 | -7/Garrison | Lost 5 parts (2p1n2w) 4191 | -7/Garrison | Discovered new exit (range 15) 4213 | -7/Garrison | Installed Relay Interface Framework 4230 | -7/Garrison | Triggered checkpoint 4240 | -7/Garrison | Triggered checkpoint 4248 | -7/Garrison | Entered Factory 4248 | -7/Factory | Accompanied by 5 allies 4585 | -7/Factory | Discovered new exit (range 142) 4793 | -7/Factory | Discovered new exit (range 12) 5000 | -7/Factory | Entered another Factory area 5000 | -6/Factory | Evolved 2 slots: Utility x2 5071 | -6/Factory | Discovered new exit (range 3) 5482 | -6/Factory | Build established: Scavenger-Mutant 5596 | -6/Factory | Identified exit to Garrison 5600 | -6/Factory | Entered Garrison 5621 | -6/Garrison | Expanded RIF knowledge: Structural Interface 5731 | -6/Garrison | Lost 7 parts (3n1u3w) 5977 | -6/Garrison | Garrison Relay disabled 5998 | -6/Garrison | Triggered checkpoint 6009 | -6/Garrison | Triggered checkpoint 6024 | -6/Garrison | Triggered checkpoint 6195 | -6/Garrison | Triggered checkpoint 6249 | -6/Garrison | Lost 4 parts (1p1n1u1w) 6594 | -6/Garrison | Discovered new exit (range 12) 6640 | -6/Garrison | Triggered checkpoint 6661 | -6/Garrison | Entered Factory 6788 | -6/Factory | Build established: Scavenger-Gunner 7488 | -6/Factory | Fabricated Adv. Beam Cannon? 8000 | -6/Factory | Identified exit to Factory 8368 | -6/Factory | Lost 4 parts (1n3w) 8457 | -6/Factory | Entered another Factory area 8457 | -5/Factory | Evolved 2 slots: Propulsion x1, Utility x1 8514 | -5/Factory | Garrison activated, responded to threat 8553 | -5/Factory | Identified exit to Garrison 8553 | -5/Factory | Entered Garrison 8601 | -5/Garrison | Build established: Scavenger-Tank 8622 | -5/Garrison | Triggered checkpoint 8642 | -5/Garrison | Garrison Relay disabled 8696 | -5/Garrison | Triggered checkpoint 8777 | -5/Garrison | Discovered new exit (range 8) 8822 | -5/Garrison | Triggered checkpoint 8908 | -5/Garrison | Triggered checkpoint 8941 | -5/Garrison | Discovered new exit (range 14) 8950 | -5/Garrison | Build established: Scavenger-Mutant 9098 | -5/Garrison | Triggered checkpoint 9101 | -5/Garrison | Garrison Relay disabled 9297 | -5/Garrison | Build established: Scavenger-Tank 9346 | -5/Garrison | Triggered checkpoint 9355 | -5/Garrison | Triggered checkpoint 9524 | -5/Garrison | Triggered checkpoint 9565 | -5/Garrison | Discovered new exit (range 12) 9591 | -5/Garrison | Expanded RIF knowledge: Zone Cloak 9655 | -5/Garrison | Garrison Relay disabled 9703 | -5/Garrison | Build established: Scavenger-Mutant 9772 | -5/Garrison | Triggered checkpoint 9815 | -5/Garrison | Garrison Relay disabled 9990 | -5/Garrison | Entered Factory 9990 | -5/Factory | Accompanied by 2 allies 10494 | -5/Factory | Identified exit to Upper Caves 10494 | -5/Factory | Identified exit to Factory 10623 | -5/Factory | Lost 11 parts (1p6n1u3w) 10890 | -5/Factory | Entered another Factory area 10890 | -4/Factory | Accompanied by 7 allies 10890 | -4/Factory | Evolved 2 slots: Utility x1, Weapon x1 10967 | -4/Factory | Build established: Scavenger-Tank 11045 | -4/Factory | Identified exit to Garrison 11052 | -4/Factory | Entered Garrison 11052 | -4/Garrison | Accompanied by 7 allies 11105 | -4/Garrison | Triggered checkpoint 11131 | -4/Garrison | Garrison Relay disabled 11172 | -4/Garrison | Spotted B-86 Titan 11478 | -4/Garrison | Lost 3 parts (1p1n1u) 11599 | -4/Garrison | Destroyed B-86 Titan 11606 | -4/Garrison | Triggered checkpoint 11781 | -4/Garrison | Lost 12 parts (2p2n2u6w) 11904 | -4/Garrison | Triggered checkpoint 11919 | -4/Garrison | Build established: Scavenger-Gunner 11937 | -4/Garrison | Garrison Relay disabled 11983 | -4/Garrison | Discovered new exit (range 8) 12000 | -4/Garrison | Expanded RIF knowledge: Watcher Feeds 12230 | -4/Garrison | Triggered checkpoint 12255 | -4/Garrison | Garrison Relay disabled 12373 | -4/Garrison | Entered Research 12373 | -3/Research | Evolved 2 slots: Power x1, Utility x1 12996 | -3/Research | Garrison activated, responded to threat 13289 | -3/Research | P-80 Master assimilated allied Assassin 8a 13344 | -3/Research | Lost 5 parts (2n3w) 13482 | -3/Research | Identified exit to Garrison 13561 | -3/Research | Garrison activated, responded to threat 13698 | -3/Research | Entered Garrison 13698 | -3/Garrison | Accompanied by 1 ally 13704 | -3/Garrison | Expanded RIF knowledge: Autooverride 13968 | -3/Garrison | Triggered checkpoint 13977 | -3/Garrison | Garrison Relay disabled 14039 | -3/Garrison | Spotted B-86 Titan 14107 | -3/Garrison | Lost 4 parts (2n2w) 14474 | -3/Garrison | Destroyed B-86 Titan 14502 | -3/Garrison | Triggered checkpoint 14546 | -3/Garrison | Triggered checkpoint 14640 | -3/Garrison | Triggered checkpoint 14673 | -3/Garrison | Discovered new exit (range 12) 14729 | -3/Garrison | Garrison Relay disabled 14839 | -3/Garrison | Build established: Scavenger-Tank 14914 | -3/Garrison | Discovered new exit (range 11) 15448 | -3/Garrison | Triggered checkpoint 15512 | -3/Garrison | Lost 4 parts (1p1n2w) 15613 | -3/Garrison | Discovered new exit (range 15) 15625 | -3/Garrison | Spotted B-86 Titan 15625 | -3/Garrison | Spotted B-86 Titan 15642 | -3/Garrison | Triggered checkpoint 15708 | -3/Garrison | Lost 8 parts (3p1n2u2w) 15911 | -3/Garrison | Phase Generator disabled 16291 | -3/Garrison | Triggered checkpoint 16555 | -3/Garrison | Garrison Relay disabled 16728 | -3/Garrison | Entered Testing 16728 | -3/Testing | Accompanied by 9 allies 16879 | -3/Testing | Garrison activated, responded to threat 16918 | -3/Testing | Core integrity fell below 50% 16940 | -3/Testing | Identified exit to Garrison 16940 | -3/Testing | Entered Garrison 16966 | -3/Garrison | Lost 10 parts (3p1n1u5w) 16977 | -3/Garrison | Triggered checkpoint 17016 | -3/Garrison | Garrison Relay disabled 17059 | -3/Garrison | Spotted B-86 Titan 17189 | -3/Garrison | Core integrity fell below 20% 17213 | -3/Garrison | Lost 11 parts (1p4n1u5w) 17215 | -3/Garrison | Assimilated Titan 8a with formatsys_high 17273 | -3/Garrison | Triggered checkpoint 17278 | -3/Garrison | Triggered checkpoint 17374 | -3/Garrison | Lost 3 parts (1n2u) 17496 | -3/Garrison | Triggered checkpoint 17685 | -3/Garrison | Garrison Relay disabled 17710 | -3/Garrison | Discovered new exit (range 9) 17814 | -3/Garrison | Discovered new exit (range 11) 17840 | -3/Garrison | Expanded RIF knowledge: Autooverride 17980 | -3/Garrison | Triggered checkpoint 17994 | -3/Garrison | Garrison Relay disabled 18055 | -3/Garrison | Entered Research 18055 | -2/Research | Evolved 2 slots: Propulsion x1, Utility x1 18275 | -2/Research | Identified exit to Garrison 18275 | -2/Research | Entered Garrison 18282 | -2/Garrison | Expanded RIF knowledge: Alert ID Control 18360 | -2/Garrison | Triggered checkpoint 18399 | -2/Garrison | Garrison Relay disabled 18494 | -2/Garrison | Spotted B-90 Cyclops 18505 | -2/Garrison | Triggered checkpoint 18532 | -2/Garrison | Destroyed B-90 Cyclops 18592 | -2/Garrison | Triggered checkpoint 18600 | -2/Garrison | Triggered checkpoint 18709 | -2/Garrison | Lost 10 parts (3p1n1u5w) 18870 | -2/Garrison | Discovered new exit (range 11) 18940 | -2/Garrison | Triggered checkpoint 19029 | -2/Garrison | Garrison Relay disabled 19055 | -2/Garrison | Phase Generator disabled 19142 | -2/Garrison | Triggered checkpoint 19426 | -2/Garrison | Triggered checkpoint 19567 | -2/Garrison | Build established: Botlord-Gunner 19589 | -2/Garrison | Garrison Relay disabled 19632 | -2/Garrison | Discovered new exit (range 9) 20026 | -2/Garrison | Lost 3 parts (3p) 20119 | -2/Garrison | Spotted B-90 Cyclops 20144 | -2/Garrison | Build established: Botlord-Mutant 20174 | -2/Garrison | Destroyed B-90 Cyclops 20174 | -2/Garrison | Garrison Relay disabled 20204 | -2/Garrison | Lost 5 parts (2p1n1u1w) 20310 | -2/Garrison | Triggered checkpoint 20414 | -2/Garrison | Discovered new exit (range 15) 20449 | -2/Garrison | Garrison Relay disabled 20654 | -2/Garrison | Entered Access 20654 | -1/Access | Accompanied by 2 allies 20654 | -1/Access | Evolved 2 slots: Utility x1, Weapon x1 20938 | -1/Access | Found Prototype Device 20939 | -1/Access | Identified Exp. Shock Absorption System 21210 | -1/Access | Lost 3 parts (2n1w) 21611 | -1/Access | System corruption reached 10% 21725 | -1/Access | Garrison activated, responded to threat 21802 | -1/Access | Lost 10 parts (1p3n6w) 21909 | -1/Access | P-80 Master assimilated allied Enforcer 10a 22062 | -1/Access | Spotted B-99 Colossus 22158 | -1/Access | Garrison activated, responded to threat 22184 | -1/Access | Lost 17 parts (4p6n1u6w) 22280 | -1/Access | Lost 4 parts (2u2w) 22362 | -1/Access | Core integrity fell below 50% 22433 | -1/Access | Lost 13 parts (1p1n5u6w) 22506 | -1/Access | Core integrity fell below 20% 22569 | -1/Access | Destroyed by S-43 Plague with Heavy Machine Gun Last Messages --------------- 22538_ K-01 Serf collects debris. 22543_ Y-72 Warden IFF system glitched. 22543_ Slug penetrates Y-72 Warden. 22543_ Slug penetrates Wall. 22544_ Slammed into K-01 Serf. 22546_ Wheel destroyed. 22546_ Dropped Exp. Power Amplifier. 22547_ System corrupted: Component data lost. 22547_ Dropped Lrg. Storage Unit. 22547_ Dropped Hcp. Storage Unit. 22548_ Dropped Mic. Fission Core. 22549_ Acquired 18 matter. 22556_ Penetrated by Slug. 22556_ Relay Coupler [Swarmer] destroyed. 22559_ Penetrated by Slug. 22564_ System corrupted: Component data lost. 22568_ Micro-nuke Launcher destroyed. 22569_ Dropped Lgt. Quantum Reactor. [Achievement: 30k Club] [Achievement: Tester] Map ----- +----------------------------------------------------+ | ??????????????????# """"" # #?? | | ??????????????????# """"" # #?? | | ??????????????????# """"" # #?? | | ??????????????????# """"" # #?? | | ??????????????????# """"" + #?? | | ??????????????????# # #?? | | ??????????????????# # #?? | | ??????????????????######+####### ### | | ??????????????????# # | | ?????????????????## # | | ?????????????????# # | | ????????????????## + | | ????????????????# # | | ????????????????# "" # | | ????????????????# "" # | | ????????????????# Y" ######## | | ????????????????# "" #??????# | | ?????????????????# "" #??????# | | ?????????????????# #??????# | | ??????????????????# #??????# | | ??????????????????#####/########??????# | | ???????###########????# ####???######## | | ???????# #????#[ #???# | | ???????# #??? s #???# | | ???????# " ## = ####?# | | ???????# """ @* s #?# | | ???????# """ ## #?# | | ???????# ] " #??? %s #?# | | ???????# #?????# #?# | | ???????# ####### #?# ### | | ???????#+######+## # #?# #?? | | ???????# #% #?# #?? | | ???????# % #?# #? | | ???????# #?# #? | | ???????###+####+## #?# # | | ????????# ## #?# # | | ????????# ## #?# / | | ????????# ""## #?# #?? | | ????????# ! ""## #?# #?? | | ????????# T"## #?# + | | ????????# ""# #?# # | | ????????# ! ""# ### #? | | ????????# # #?? | | ????????# # ############+###### | | ????????########## #?????# | | ?????????????????## #?????# = | | ??????############# ^^%#?????# | | ??????#%%! | # #???### !! | | ??????#%%% ! !!# #???# + !! | | ??????#%%% !! !!%# #???# # !! | +----------------------------------------------------+ Best States ------------- Heat Dissipation 103 Coolant Potential 100 Energy Generation 68 Energy Capacity 800 Matter Stores 300 Matter Capacity 300 Sight Range 18 Terrain Scan Range 16 Terrain Scan Density 10 Jamming Range 16 Cloak Strength 3 Power Amplification 40 Armor Coverage 600 Resistance: KI 25 Resistance: EX 75 Core Shielding 30 Weapon Shielding 33 Weapon Cycling 20 Evasion (%) 54 Targeting Accuracy 12 Melee Accuracy 6 Target Analysis 8 Core Analysis 10 Recoil Reduction 5 Relay Coupler Types 160 Relay Coupler Value 7 Item Schematics ----------------- Wheel | -9/Materials | Scanalyzed Adv. Beam Cannon | -9/Materials | Scanalyzed Imp. Targeting Computer | -9/Materials | Scanalyzed Lrg. Storage Unit | -3/Research | Scanalyzed Robot Schematics ------------------ None Fabricated ------------ Adv. Beam Cannon | x1 | -6/Factory Alien Tech Used ----------------- None Achievements -------------- 30k Club Giant Slayer Pwned Tank Tester Challenges ------------ None Game ------ Seed NullPlasmaMicroactuators Manual? 0 Play Time 06:32:13 Cumulative 71.4 hours Start 2021.04.08 @ 13:33:07 End 2021.04.10 @ 02:46:53 Sessions 13 Manual Loads 0 Difficulty Rogue Special Mode None Game No. 28 Rogue 28 Adventurer 0 Explorer 0 Win Type - Total 0 Types 0/0/0/0/0/0/0/0/0 Lore% 43 Gallery% 51 Achievement% 39 Wizard Run 0 Options --------- ASCII 0 Keyboard 0 Movement Mouse Keybinds 0 Fullscreen 2 Font 12/Smallcaps Map View 83x54 Tactical HUD 1 Map Filters NONE Filters NONE Steam X RUN: 1d649584-ad7f-429d-8865-30022ff0876b